Cogmind - Beta 13 @@@ ROGUE MODE // 2024.05.11 @ 18:03:04 Player: NQH Result: Destroyed by D-53 Grenadier with Mini Grenade Launcher Performance ------------- Evolutions (0) 0 Regions Visited (4) 800 Robots Destroyed (20) 100 Value Destroyed (516) 516 Prototype IDs (1) 20 Alien Tech Used (0) 0 Bonus (43) 43 TOTAL SCORE: 1479 Bonus ------- Follower Combat Kills 49 Friendly Fire -6 Cogmind --------- Core Integrity 0/250 Matter 300/300 Energy 93/100 System Corruption 7% Temperature Cool (38) Movement Flying (37) Location -9/Mines Parts ------- > --- POWER (1) -------- (None) > --- PROPULSION (2) --- Improved Flight Unit Improved Flight Unit (fused) > --- UTILITY (2) ------ Signal Interpreter > --- WEAPON (2) ------- Light Assault Rifle > --- INVENTORY (5) ---- Improved Flight Unit Improved Flight Unit Weight Redist. System Datajack Mining Laser Peak State ------------ > --- POWER ------------ Light Ion Engine > --- PROPULSION ------- Improved Flight Unit Improved Flight Unit > --- UTILITY ---------- Signal Interpreter Improved Terrain Scanner > --- WEAPON ----------- Light Assault Rifle Grenade Launcher > --- INVENTORY -------- Improved Flight Unit Improved Flight Unit Weight Redist. System Signal Interpreter Small Laser [Rating: 14] Favorites ----------- Power Ion Engine Engine Ion Engine Propulsion Improved Flight Unit Treads Light Treads Flight Unit Improved Flight Unit Utility Signal Interpreter Device Improved Terrain Scanner Processor Signal Interpreter Weapon Light Assault Rifle Energy Gun Small Laser Energy Cannon Beam Cannon Ballistic Gun Light Assault Rifle Launcher Grenade Launcher Build | -11 -10 -10 -10 -9 ------- Run | Yrd Mat Min Exi Min Slots Evolved . | . . . . . Power . | . . . . . Propulsion . | . . . . . Utility . | . . . . . Weapon . | . . . . . Parts Attached 20 | 6 14 . . . Power 7 | 1 6 . . . Engine 7 | 1 6 . . . Core . | . . . . . Reactor . | . . . . . Propulsion 4 | 2 2 . . . Treads 2 | 2 . . . . Leg . | . . . . . Wheel . | . . . . . Hover . | . . . . . Flight 2 | . 2 . . . Utility 3 | . 3 . . . Device 1 | . 1 . . . Storage . | . . . . . Processor 2 | . 2 . . . Hackware . | . . . . . Protection . | . . . . . Artifact . | . . . . . Weapon 6 | 3 3 . . . Energy Gun 1 | 1 . . . . Energy Cannon 1 | . 1 . . . Ballistic Gun 3 | 2 1 . . . Ballistic Cannon . | . . . . . Launcher 1 | . 1 . . . Special Weapon . | . . . . . Impact Weapon . | . . . . . Slashing Weapon . | . . . . . Piercing Weapon . | . . . . . Special Melee Weapon . | . . . . . Unidentified Prototypes 1 | . 1 . . . Corrupted Parts 1 | . 1 . . . System Corruption 6 | . 6 . . . Parts Lost 5 | . 2 1 . 2 Power 2 | . 1 . . 1 Propulsion . | . . . . . Utility 1 | . . 1 . . Weapon 2 | . 1 . . 1 Highest Loss Streak 2 | . 2 1 . 2 To Critical Strikes . | . . . . . Average Slot Usage (%) 91 | . 95 91 85 82 Engine 13 | . 13 14 14 11 Treads 9 | . 19 . . . Flight 18 | . 8 28 28 28 Device 6 | . 11 6 . . Processor 13 | . 13 14 14 14 Energy Cannon 8 | . 3 14 14 14 Ballistic Gun 14 | . 15 14 14 14 Launcher 4 | . 9 . . . Naked Turns . | . . . . . Heaviest Build 11 | 6 11 10 9 9 Greatest Support 40 | 40 40 10 10 10 Greatest Overweight (x) 3 | . 3 . 2 . Average Overweight (x) . | . . . . . Largest Inventory Capacity 5 | 5 5 5 5 5 Average Capacity 5 | 5 5 5 5 5 Most Carried 5 | 1 5 5 5 5 Average Carried 4 | . 4 5 5 5 Final Capacity 5 | 5 5 5 5 5 Final Carried 5 | 1 5 5 5 5 Class Distribution -------------------- 100% | Mutant Dominant Class ---------------- Mutant | -10/Materials Mutant | -10/Mines Mutant | -10/Exiles Mutant | -9/Mines Resources | -11 -10 -10 -10 -9 ----------- Run | Yrd Mat Min Exi Min Matter Collected 540 | 163 220 108 . 49 Remotely . | . . . . . Salvage Created 523 | . 428 58 . 37 Parts 40 | . 31 7 . 2 Haulers Intercepted . | . . . . . Recyclers Shooed . | . . . . . Parts Field Recycled . | . . . . . Retrieved Matter . | . . . . . Parts Self-Destructed . | . . . . . Prevented . | . . . . . Kills | -11 -10 -10 -10 -9 ------- Run | Yrd Mat Min Exi Min Combat Hostiles Destroyed 15 | . 10 4 . 1 Guns 1 | . 1 . . . Cannons 10 | . 5 4 . 1 AOE 4 | . 4 . . . Classes Destroyed 5 | . 4 1 . . Worker 1 | . 1 . . . Tunneler 1 | . 1 . . . Watcher 3 | . 3 . . . Swarmer 4 | . . 4 . . Grunt 11 | . 10 . . 1 Best Kill Streak 4 | . 4 4 . 1 Combat Bots Only 4 | . 3 4 . 1 Max Kills in Single Turn 3 | . 3 1 . 1 Gunslinging . | . . . . . Exploded 2 | . 2 . . . Melee . | . . . . . Uniques/NPCs Destroyed . | . . . . . Combat | -11 -10 -10 -10 -9 -------- Run | Yrd Mat Min Exi Min Hostile Shots Fired 51 | . 28 15 . 8 Missed 15 | . 9 4 . 2 Damage Taken 579 | . 302 84 . 193 Core 258 | . 137 48 . 73 Absorbed by Shields . | . . . . . Core Remaining (%) 100 | 100 . . . . Volleys Fired 37 | . 26 7 . 4 Largest 2 | . 2 2 . 2 Hottest 80 | . 80 80 . 80 Shots Fired 69 | . 45 14 2 8 Gun 38 | . 26 7 1 4 Cannon 25 | . 13 7 1 4 Launcher 6 | . 6 . . . Special . | . . . . . Kinetic 38 | . 26 7 1 4 Thermal 25 | . 13 7 1 4 Explosive 6 | . 6 . . . Electromagnetic . | . . . . . Robot Hit Streak 5 | . 5 4 . 4 Robot Miss Streak 6 | . 6 1 . 2 Penetration Max . | . . . . . Secondary Targets . | . . . . . Shots Hit Robots 28 | . 18 7 . 3 Core Hits 33 | . 25 6 . 2 Critical Kills . | . . . . . Critical Parts Destroyed . | . . . . . Critical Strikes . | . . . . . Melee Attacks . | . . . . . Impact . | . . . . . Slashing . | . . . . . Piercing . | . . . . . Sneak Attacks . | . . . . . Combat Hostiles . | . . . . . Follow-up Attacks . | . . . . . Damage Inflicted 732 | . 584 105 . 43 Guns 176 | . 147 20 . 9 Cannons 241 | . 122 85 . 34 Explosions 309 | . 309 . . . Melee . | . . . . . Ramming 6 | . 6 . . . Kinetic 176 | . 147 20 . 9 Thermal 241 | . 122 85 . 34 Explosive 273 | . 273 . . . Electromagnetic 36 | . 36 . . . Impact . | . . . . . Slashing . | . . . . . Piercing . | . . . . . Highest Corruption 7 | . 7 7 7 7 Average Corruption 6 | . 6 7 7 7 Corruption Purged . | . . . . . Corruption Blocked . | . . . . . Effects 26 | . 4 5 16 1 Message Errors 6 | . 2 1 3 . Matter Fused 5 | . 1 1 3 . Heat Flow Errors 6 | . 1 1 3 1 Energy Discharges 4 | . . 1 3 . Parts Fused 1 | . . 1 . . Data Loss (minor) 2 | . . . 2 . Misfires 2 | . . . 2 . Overload Shots . | . . . . . Overflow Damage 12 | . 12 . . . Projectiles . | . . . . . Explosions 12 | . 12 . . . Melee . | . . . . . Knockbacks . | . . . . . Impact . | . . . . . Kinetic . | . . . . . Secondary . | . . . . . Self-Inflicted Damage 80 | . 80 . . . Shots 2 | . 2 . . . Rammed 1 | . 1 . . . Targets Rammed 1 | . 1 . . . Kicked . | . . . . . Crushed . | . . . . . Highest Temperature 360 | . 360 277 276 121 Average Temperature 117 | . 154 112 99 45 Received Heat Transfer 146 | . 126 . . 20 Effects 2 | . 2 . . . Energy Bleed 2 | . 2 . . . Siege Activations . | . . . . . Robots Corrupted . | . . . . . Combat Hostiles . | . . . . . Parts Fried . | . . . . . Impact Corruptions . | . . . . . Robots Melted . | . . . . . Combat Hostiles . | . . . . . Parts Melted . | . . . . . Heat Transferred 518 | . 259 185 . 74 Parts Sabotaged . | . . . . . Parts Stolen . | . . . . . Parts Stripped . | . . . . . Power Chain Reactions 1 | . 1 . . . Alert | -11 -10 -10 -10 -9 ------- Run | Yrd Mat Min Exi Min Peak Influence 254 | . 195 254 . 36 Initial 70 | . . 70 . . Average 101 | . 95 161 . 30 Maximum Alert Level 1 | . . 1 . . Low Security (%) 87 | 100 100 51 . 100 Level 1 12 | . . 48 . . Level 2 . | . . . . . Level 3 . | . . . . . Level 4 . | . . . . . Level 5 . | . . . . . High Security . | . . . . . Max Security . | . . . . . Squads Dispatched 4 | . 4 . . . Investigation 3 | . 3 . . . Extermination . | . . . . . Reinforcement 1 | . 1 . . . Assault . | . . . . . Garrison . | . . . . . Intercept . | . . . . . Searches Triggered . | . . . . . Construction Impeded . | . . . . . Haulers Reinforced . | . . . . . Active Scanning Responses . | . . . . . Cargo Convoy Interrupts . | . . . . . Stealth | -11 -10 -10 -10 -9 --------- Run | Yrd Mat Min Exi Min Distress Signals . | . . . . . Communications Jammed . | . . . . . Distress Signals . | . . . . . Times Spotted 30 | . 16 7 . 7 Peak Tracking Total 6 | . 3 6 . 6 Tactical Retreats 1 | . . 1 . . Traps | -11 -10 -10 -10 -9 ------- Run | Yrd Mat Min Exi Min Traps Triggered 1 | . 1 . . . Indirectly . | . . . . . Trap Hack Attempts . | . . . . . Triggered . | . . . . . Disarmed . | . . . . . Reprogrammed . | . . . . . Reused . | . . . . . Traps Extracted . | . . . . . Installed . | . . . . . Triggered . | . . . . . Machines | -11 -10 -10 -10 -9 ---------- Run | Yrd Mat Min Exi Min Machines Disabled 2 | . 2 . . . Max in Single Turn 1 | . 1 . . . Machines Repaired . | . . . . . Machines Dismantled . | . . . . . Machines Sabotaged . | . . . . . Overloaded Fab Kills . | . . . . . Hacking | -11 -10 -10 -10 -9 --------- Run | Yrd Mat Min Exi Min Machines Accessed 9 | . 5 . 4 . Terminals 4 | . 4 . . . Fabricators . | . . . . . Repair Stations . | . . . . . Recycling Units 1 | . 1 . . . Scanalyzers . | . . . . . Garrison Access . | . . . . . Total Hacks 16 | . 12 . 4 . Successful 11 | . 7 . 4 . Failed 5 | . 5 . . . Catastrophic 1 | . 1 . . . Database Lockouts . | . . . . . Manual 3 | . . . 3 . Terminals 11 | . 11 . . . Fabricators . | . . . . . Repair Stations . | . . . . . Recycling Units 1 | . 1 . . . Scanalyzers . | . . . . . Garrison Access . | . . . . . Terminal Hacks 10 | . 6 . 4 . Record 8 | . 4 . 4 . Emergency Access Points 2 | . 2 . . . Fabricator Hacks . | . . . . . Repair Station Hacks . | . . . . . Recycling Unit Hacks 1 | . 1 . . . Report Inventory 1 | . 1 . . . Scanalyzer . | . . . . . Garrison Access Hacks . | . . . . . Unauthorized Hacks . | . . . . . Terminals . | . . . . . Fabricators . | . . . . . Repair Stations . | . . . . . Recycling Units . | . . . . . Scanalyzers . | . . . . . Garrison Access . | . . . . . Data Cores Recovered . | . . . . . Used . | . . . . . Hacking Detections 3 | . 3 . . . Full Trace Events 2 | . 2 . . . Feedback Events . | . . . . . Feedback Blocked . | . . . . . Robot Schematics Acquired . | . . . . . Robots Built . | . . . . . Authchips . | . . . . . Time . | . . . . . Total Robot Build Rating . | . . . . . Part Schematics Acquired . | . . . . . Parts Built . | . . . . . Authchips . | . . . . . Time . | . . . . . Total Part Build Rating . | . . . . . Parts Repaired . | . . . . . Time . | . . . . . Parts Recycled . | . . . . . Recycled Matter . | . . . . . Retrieved Matter . | . . . . . Retrieved Components . | . . . . . Parts Scanalyzed . | . . . . . Part Schematics Acquired . | . . . . . Parts Damaged . | . . . . . Bothacking | -11 -10 -10 -10 -9 ------------ Run | Yrd Mat Min Exi Min Used RIF Installer . | . . . . . Robots Hacked . | . . . . . Non-combat . | . . . . . Combat . | . . . . . Robot Hacks Applied . | . . . . . Relay Couplers Released . | . . . . . Fabnet Peak Effective % . | . . . . . Robots Rewired . | . . . . . Allies Hacked . | . . . . . Hacks Repelled . | . . . . . Allies | -11 -10 -10 -10 -9 -------- Run | Yrd Mat Min Exi Min Total Allies 4 | . . 4 . . Largest Group 4 | . . 4 3 3 Highest-Rated Group 71 | . . 71 40 40 Highest-Rated Ally 31 | . . 31 16 16 Total Orders . | . . . . . Ally Attacks 29 | . . 10 . 19 Total Damage 216 | . . 80 . 136 Kills 4 | . . 2 . 2 Allies Corrupted . | . . . . . Allies Melted . | . . . . . Intel | -11 -10 -10 -10 -9 ------- Run | Yrd Mat Min Exi Min Robot Analysis Total . | . . . . . Derelict Logs Recovered 1 | . . 1 . . Drone Launches . | . . . . . Drone Recoveries . | . . . . . Exploration | -11 -10 -10 -10 -9 ------------- Run | Yrd Mat Min Exi Min Turns Passed 1340 | 73 588 243 386 50 Spaces Moved 1779 | 46 492 419 721 101 Core 64 | 9 1 . 54 . Treads 271 | 37 234 . . . Legs . | . . . . . Wheels . | . . . . . Hover . | . . . . . Flight 1444 | . 257 419 667 101 Fastest Speed 37 | 50 37 37 37 37 Average Speed 59 | 138 96 37 45 37 Slowest Speed 200 | 160 200 37 150 37 Overloaded Moves . | . . . . . Propulsion Burnouts . | . . . . . Robots Hopped 4 | . 2 2 . . Cave-ins Triggered . | . . . . . Exploration Rate (%) 56 | 3 82 90 92 17 Regions Visited 4 Branch Regions 3 Pre-discovered Areas 1 | . . 1 . . Known Exits Taken 3 | . 1 1 1 . Unknown Exits Taken 1 | 1 . . . . Scrap Searched 2 | . . 1 . 1 Spaces Dug 4 | . 4 . . . Terrain Destroyed 21 | . 21 . . . Melee . | . . . . . Projectile . | . . . . . AOE 21 | . 21 . . . Terrain Rammed . | . . . . . Walls Destroyed . | . . . . . Machines Disabled . | . . . . . Actions | -11 -10 -10 -10 -9 --------- Run | Yrd Mat Min Exi Min Total 1990 | 52 561 492 778 107 Wait 139 | . 14 65 58 2 Move 1767 | 45 487 414 720 101 Hop 4 | . 2 2 . . Pick Up 11 | 1 8 2 . . Fast Attach 12 | 5 7 . . . Attach 2 | . 2 . . . Detach . | . . . . . Swap 6 | 1 5 . . . Drop 11 | . 9 2 . . Fire 37 | . 26 7 . 4 Melee . | . . . . . Ram . | . . . . . Kick . | . . . . . Crush 1 | . 1 . . . Escape Stasis . | . . . . . Rewire . | . . . . . Trap . | . . . . . Miscellaneous . | . . . . . Route ------- -11/Scrapyard -10/Materials (discovered 5 exits: *Mat x3 / *Min x2) -10/Mines (discovered 3 exits: *Mat x2 / *Exi) -10/Exiles (discovered 2 exits: *Min x2) -9/Mines (discovered 1 exit: [*Mat]) History --------- Turn | Location | Event 4 | -11/Scrapyard | Discovered new exit (range 16) 74 | -11/Scrapyard | Entered Materials 222 | -10/Materials | Discovered new exit (range 13) 240 | -10/Materials | Identified exit to Mines 322 | -10/Materials | Build established: Mutant 346 | -10/Materials | Discovered new exit (range 15) 368 | -10/Materials | Identified exit to Materials 534 | -10/Materials | Discovered exit to Mines (range 13) 552 | -10/Materials | Discovered exit to Materials (range 3) 596 | -10/Materials | Core integrity fell below 50% 616 | -10/Materials | Discovered exit to Materials (range 6) 662 | -10/Materials | Entered Mines 665 | -10/Mines | Received a Mining Laser from a helpful Derelict 681 | -10/Mines | Met a Derelict bent on vengeance 681 | -10/Mines | Discovered exit to Materials (range 15) 732 | -10/Mines | Learned location of Storage (-8) 757 | -10/Mines | Assisted by bots powering up and referring to "LRC-V3" 766 | -10/Mines | Discovered exit to Materials (range 8) 861 | -10/Mines | Deemed a non-threat by the Exiles lab entrance 861 | -10/Mines | Discovered new exit (range 5) 862 | -10/Mines | Identified exit to Exiles 905 | -10/Mines | Entered Exiles 905 | -10/Exiles | Found Exiles lab abandoned 905 | -10/Exiles | Accompanied by 3 allies 962 | -10/Exiles | Discovered new exit (range 10) 964 | -10/Exiles | Identified exit to Mines 1186 | -10/Exiles | Discovered exit to Mines (range 14) 1291 | -10/Exiles | Entered Mines 1291 | -9/Mines | Accompanied by 3 allies 1307 | -9/Mines | Assembled infested the area 1332 | -9/Mines | Core integrity fell below 20% 1338 | -9/Mines | Discovered new exit (range 14) 1341 | -9/Mines | Destroyed by D-53 Grenadier with Mini Grenade Launcher Last Messages --------------- 01304_ Acquired 36 matter. 01305_ Acquired 13 matter. 01307_ ALERT: Infestation in the mines, dispatching Demolisher response squad. 01312_ Searching scrap... 01312_ Found Flail. 01312_ Found Arm. Wheel. 01312_ Found Hvy. Assault Rifle. 01312_ Found 34 Matter. 01321_ System corrupted: Heat flow error (+101). 01329_ R-06 Scavenger collects Ion Engine. 01331_ C-30 ARC bursts open, deploying its payload. 01331_ D-53 Grenadier unfolds itself. 01331_ R-06 Scavenger destroyed. 01331_ Pulverizer disabled. 01334_ Ion Engine destroyed. 01337_ U-05 Engineer lays Concrete. 01338_ EXIT=FOUND 01341_ Beam Cannon destroyed. Map ----- +----------------------------------------------------+ | ????????????????????????????????? | | ????????????????????????????????? | | ????????????????????????????????? | | ????????????????????????????????? | | ??###############??????????????## | | ??# ##?????????????# | | ??# #?????????????# | | ??# ##????????????# | | ??# #????????????#/ | | ??# ###############[ | | ??# = =% | | ??# % =%= ################ | | ??# * #??????????????? | | ??# %##??????????????? | | ??# """" "#???????????????? | | ??# """" #???????????????? | | ??# #???????????????? | | ??#####d#########???????????????? | | ??????# #???????????????????????? | | ??????# #???????????????????????? | | ??????# #???????????????????????? | | ??????# ##??????????????????????? | | ??????# #??????????????????????? | | ??????## #??????????????????????? | | ???????# #??????????????????????? | | ???????#@#??????????????????????? | | ???????# #??????????????????????? | | ???????# #??????????????????????? | | ???????# #??????????????????????? | | ???????# #??????????????????????? | | ???????# #??????????????????????? | | ???????# #??????????????????????? | | ???????# #??????????????????????? | | ???????#g#??????????????????????? | | ???????? ???????????????????????? | | ????????g???????????????????????? | | ????????